[Event "Early-Titled-Tuesday-Blitz-May-28-2024"]
[Site "Chess.com"]
[Date "2024.05.28"]
[Round "9"]
[White "TigrVShlyape"]
[Black "Aswathchess"]
[Result "1-0"]
[WhiteElo "2918"]
[BlackElo "2738"]
[TimeControl "180+1"]
[EndTime "9:46:26 PDT"]
[Termination "TigrVShlyape won by resignation"]

1. e4 {[%clk 0:03:00.9]} 1... c5 {[%clk 0:02:57.5]} 2. Nf3 {[%clk 0:03:01]} 2...
d6 {[%clk 0:02:57.9]} 3. d4 {[%clk 0:03:01.2]} 3... cxd4 {[%clk 0:02:58.8]} 4.
Nxd4 {[%clk 0:03:01.6]} 4... Nf6 {[%clk 0:02:59.5]} 5. Nc3 {[%clk 0:03:01.9]}
5... a6 {[%clk 0:03:00.2]} 6. a4 {[%clk 0:03:01.7]} 6... e5 {[%clk 0:02:58.8]}
7. Nf3 {[%clk 0:03:01]} 7... Be7 {[%clk 0:02:59.4]} 8. Bc4 {[%clk 0:03:00.8]}
8... Be6 {[%clk 0:02:58.4]} 9. Ba2 {[%clk 0:02:57.2]} 9... Nc6 {[%clk
0:02:53.5]} 10. O-O {[%clk 0:02:57]} 10... O-O {[%clk 0:02:52.5]} 11. Bg5 {[%clk
0:02:52]} 11... Nb4 {[%clk 0:02:36.8]} 12. Bb3 {[%clk 0:02:50.2]} 12... Rc8
{[%clk 0:02:27.2]} 13. Qe2 {[%clk 0:02:45]} 13... Nh5 {[%clk 0:02:15.2]} 14. Be3
{[%clk 0:02:41.6]} 14... Bxb3 {[%clk 0:02:06.2]} 15. cxb3 {[%clk 0:02:40.8]}
15... Qa5 {[%clk 0:02:06.2]} 16. Rfd1 {[%clk 0:02:39.4]} 16... Nf6 {[%clk
0:02:04.3]} 17. Nd2 {[%clk 0:02:37.3]} 17... d5 {[%clk 0:01:51.5]} 18. exd5
{[%clk 0:02:26.3]} 18... Nbxd5 {[%clk 0:01:51.9]} 19. Nxd5 {[%clk 0:02:00.7]}
19... Qxd5 {[%clk 0:01:52.8]} 20. Nc4 {[%clk 0:01:59.8]} 20... Qe6 {[%clk
0:01:52.6]} 21. Bg5 {[%clk 0:01:49.7]} 21... Rc5 {[%clk 0:01:52]} 22. Bxf6
{[%clk 0:01:43.9]} 22... Bxf6 {[%clk 0:01:52.2]} 23. Rd6 {[%clk 0:01:43.3]}
23... Qe7 {[%clk 0:01:51.4]} 24. Rad1 {[%clk 0:01:41.2]} 24... Rc7 {[%clk
0:01:52]} 25. Qe4 {[%clk 0:01:36.5]} 25... g6 {[%clk 0:01:30.4]} 26. g3 {[%clk
0:01:35.6]} 26... Rfc8 {[%clk 0:01:22.9]} 27. a5 {[%clk 0:01:32.9]} 27... Bg7
{[%clk 0:01:05.4]} 28. h4 {[%clk 0:01:31.4]} 28... h5 {[%clk 0:01:04.8]} 29. Kg2
{[%clk 0:01:27.3]} 29... Qe8 {[%clk 0:00:25.2]} 30. Nb6 {[%clk 0:01:25.2]} 30...
Rb8 {[%clk 0:00:17.2]} 31. Rd7 {[%clk 0:01:23.5]} 31... Rxd7 {[%clk 0:00:10.1]}
32. Rxd7 {[%clk 0:01:23.3]} 32... Qe6 {[%clk 0:00:10.6]} 33. Rxb7 {[%clk
0:01:17.1]} 33... Rxb7 {[%clk 0:00:09.4]} 34. Qxb7 {[%clk 0:01:16.8]} 34... Qxb3
{[%clk 0:00:10.1]} 35. Qxa6 {[%clk 0:01:15.7]} 35... e4 {[%clk 0:00:07.5]} 36.
Qa8+ {[%clk 0:01:15]} 36... Kh7 {[%clk 0:00:07.6]} 37. Qxe4 {[%clk 0:01:14.7]}
37... Qxb2 {[%clk 0:00:07.7]} 38. Qd5 {[%clk 0:01:12.8]} 38... Kg8 {[%clk
0:00:05.2]} 39. Nc4 {[%clk 0:01:12.1]} 39... Qa2 {[%clk 0:00:03.9]} 40. Ne3
{[%clk 0:01:03.6]} 40... Bf6 {[%clk 0:00:03.1]} 41. Qxa2 {[%clk 0:01:03]} 1-0

[Event "Early-Titled-Tuesday-Blitz-May-28-2024"]
[Site "Chess.com"]
[Date "2024.05.28"]
[Round "9"]
[White "Aygehovit1992"]
[Black "Shankland"]
[Result "0-1"]
[WhiteElo "2824"]
[BlackElo "2987"]
[TimeControl "180+1"]
[EndTime "9:46:34 PDT"]
[Termination "Shankland won by checkmate"]

1. e4 {[%clk 0:02:56.2]} 1... c5 {[%clk 0:02:59.5]} 2. Nc3 {[%clk 0:02:55.5]}
2... Nc6 {[%clk 0:02:58.4]} 3. Bb5 {[%clk 0:02:55.4]} 3... Nd4 {[%clk 0:02:58]}
4. Bc4 {[%clk 0:02:55.6]} 4... e6 {[%clk 0:02:56.5]} 5. Nge2 {[%clk 0:02:55.3]}
5... Nf6 {[%clk 0:02:56.1]} 6. O-O {[%clk 0:02:53.8]} 6... a6 {[%clk 0:02:56.2]}
7. a4 {[%clk 0:02:53.4]} 7... d5 {[%clk 0:02:56]} 8. exd5 {[%clk 0:02:52.7]}
8... exd5 {[%clk 0:02:56.6]} 9. Ba2 {[%clk 0:02:52.9]} 9... Bd6 {[%clk
0:02:55.5]} 10. d3 {[%clk 0:02:26.4]} 10... O-O {[%clk 0:02:54.5]} 11. Nxd4
{[%clk 0:02:22.3]} 11... cxd4 {[%clk 0:02:55.4]} 12. Ne2 {[%clk 0:02:22.1]}
12... Bg4 {[%clk 0:02:51.9]} 13. h3 {[%clk 0:02:12.4]} 13... Bh5 {[%clk
0:02:51.4]} 14. f3 {[%clk 0:02:03.4]} 14... Rc8 {[%clk 0:02:50.1]} 15. Nxd4
{[%clk 0:01:50.2]} 15... Bc5 {[%clk 0:02:32.6]} 16. c3 {[%clk 0:01:50.1]} 16...
Bxd4+ {[%clk 0:02:31]} 17. cxd4 {[%clk 0:01:51]} 17... Qb6 {[%clk 0:02:31.2]}
18. Be3 {[%clk 0:01:35.6]} 18... Qxb2 {[%clk 0:02:30.2]} 19. Rf2 {[%clk
0:01:29.3]} 19... Qb6 {[%clk 0:02:27]} 20. Rb1 {[%clk 0:01:27.3]} 20... Qc6
{[%clk 0:02:25.6]} 21. a5 {[%clk 0:01:20.4]} 21... Bg6 {[%clk 0:02:18.8]} 22.
Bg5 {[%clk 0:01:11.6]} 22... Rfe8 {[%clk 0:02:15.6]} 23. Rb6 {[%clk 0:01:07]}
23... Qc3 {[%clk 0:02:14.4]} 24. Qd2 {[%clk 0:00:57]} 24... Qxd4 {[%clk
0:02:10.9]} 25. Bxf6 {[%clk 0:00:57.3]} 25... gxf6 {[%clk 0:02:10.5]} 26. Rxb7
{[%clk 0:00:50.8]} 26... Rc3 {[%clk 0:02:01.1]} 27. Rb3 {[%clk 0:00:25.7]} 27...
Rec8 {[%clk 0:01:58.9]} 28. Rxc3 {[%clk 0:00:23.9]} 28... Rxc3 {[%clk
0:01:59.5]} 29. Qb2 {[%clk 0:00:11.8]} 29... Kg7 {[%clk 0:01:40.9]} 30. h4
{[%clk 0:00:11.4]} 30... h5 {[%clk 0:01:37.9]} 31. g3 {[%clk 0:00:08.5]} 31...
Qe5 {[%clk 0:01:11.7]} 32. Kg2 {[%clk 0:00:07.7]} 32... Rxd3 {[%clk 0:01:11.1]}
33. Qb6 {[%clk 0:00:04.3]} 33... Qe1 {[%clk 0:01:06.5]} 34. Qxa6 {[%clk
0:00:03.2]} 34... Rd2 {[%clk 0:01:06.6]} 35. Qb6 {[%clk 0:00:02]} 35... d4
{[%clk 0:01:06.7]} 36. Rxd2 {[%clk 0:00:01]} 36... Qxd2+ {[%clk 0:01:06.8]} 37.
Kh3 {[%clk 0:00:01]} 37... Bd3 {[%clk 0:01:05.5]} 38. g4 {[%clk 0:00:01]} 38...
Bf1+ {[%clk 0:00:57.7]} 39. Kg3 {[%clk 0:00:01.5]} 39... Qe1+ {[%clk 0:00:58.1]}
40. Kf4 {[%clk 0:00:01.9]} 40... Qe5# {[%clk 0:00:58.1]} 0-1

[Event "Early-Titled-Tuesday-Blitz-May-28-2024"]
[Site "Chess.com"]
[Date "2024.05.28"]
[Round "9"]
[White "Alex_Sahakyan2006"]
[Black "AldokhinIvan"]
[Result "1-0"]
[WhiteElo "2837"]
[BlackElo "2617"]
[TimeControl "180+1"]
[EndTime "9:46:36 PDT"]
[Termination "Alex_Sahakyan2006 won on time"]

1. e4 {[%clk 0:02:57.2]} 1... c5 {[%clk 0:02:59.7]} 2. Nf3 {[%clk 0:02:57.2]}
2... e6 {[%clk 0:03:00.3]} 3. Nc3 {[%clk 0:02:56.7]} 3... a6 {[%clk 0:03:00.1]}
4. g3 {[%clk 0:02:55.3]} 4... d6 {[%clk 0:02:57.1]} 5. Bg2 {[%clk 0:02:54.3]}
5... Nf6 {[%clk 0:02:57.7]} 6. e5 {[%clk 0:02:53.2]} 6... dxe5 {[%clk
0:02:56.5]} 7. Nxe5 {[%clk 0:02:54.1]} 7... Nbd7 {[%clk 0:02:47.1]} 8. Nc4
{[%clk 0:02:52.9]} 8... Rb8 {[%clk 0:02:41.6]} 9. a4 {[%clk 0:02:51]} 9... b6
{[%clk 0:02:25]} 10. d3 {[%clk 0:02:17.5]} 10... Bb7 {[%clk 0:02:24.2]} 11. Bxb7
{[%clk 0:02:06]} 11... Rxb7 {[%clk 0:02:24]} 12. Qf3 {[%clk 0:02:06.9]} 12...
Qc8 {[%clk 0:01:59.3]} 13. Bf4 {[%clk 0:01:58.5]} 13... Ra7 {[%clk 0:01:34.2]}
14. O-O {[%clk 0:01:49.1]} 14... Qa8 {[%clk 0:01:33.5]} 15. Qxa8+ {[%clk
0:01:36.4]} 15... Rxa8 {[%clk 0:01:33.5]} 16. Bc7 {[%clk 0:01:37.1]} 16... Be7
{[%clk 0:00:48.9]} 17. Nxb6 {[%clk 0:01:33.2]} 17... Nxb6 {[%clk 0:00:48.2]} 18.
Bxb6 {[%clk 0:01:34.1]} 18... Kd7 {[%clk 0:00:45.8]} 19. b3 {[%clk 0:01:29.5]}
19... a5 {[%clk 0:00:35.8]} 20. d4 {[%clk 0:01:27.5]} 20... Kc6 {[%clk
0:00:24.8]} 21. Bxc5 {[%clk 0:01:23.2]} 21... Bxc5 {[%clk 0:00:23.1]} 22. dxc5
{[%clk 0:01:24.1]} 22... Kxc5 {[%clk 0:00:23.6]} 23. Rfd1 {[%clk 0:01:24.1]}
23... Rhd8 {[%clk 0:00:17.9]} 24. Nb5 {[%clk 0:01:24]} 24... Kb4 {[%clk
0:00:09.3]} 25. Kf1 {[%clk 0:01:07.4]} 25... Rac8 {[%clk 0:00:08.2]} 26. Rxd8
{[%clk 0:01:07]} 26... Rxd8 {[%clk 0:00:08.2]} 27. Ke2 {[%clk 0:01:07.6]} 27...
Rc8 {[%clk 0:00:08.4]} 28. Kd3 {[%clk 0:00:59.6]} 28... Rd8+ {[%clk 0:00:07.9]}
29. Ke2 {[%clk 0:00:58.1]} 29... Rc8 {[%clk 0:00:07.4]} 30. Rc1 {[%clk
0:00:40.4]} 30... Ne4 {[%clk 0:00:07.6]} 31. f3 {[%clk 0:00:34.4]} 1-0

[Event "Early-Titled-Tuesday-Blitz-May-28-2024"]
[Site "Chess.com"]
[Date "2024.05.28"]
[Round "9"]
[White "mbojan"]
[Black "twofoxniel"]
[Result "1-0"]
[WhiteElo "2913"]
[BlackElo "2713"]
[TimeControl "180+1"]
[EndTime "9:46:39 PDT"]
[Termination "mbojan won by resignation"]

1. Nf3 {[%clk 0:03:00.9]} 1... d5 {[%clk 0:02:59.5]} 2. g3 {[%clk 0:03:01]} 2...
Nf6 {[%clk 0:02:59.2]} 3. Bg2 {[%clk 0:03:01.4]} 3... c6 {[%clk 0:02:59.8]} 4.
O-O {[%clk 0:03:01.5]} 4... Bf5 {[%clk 0:03:00]} 5. c4 {[%clk 0:03:01]} 5... e6
{[%clk 0:03:00.3]} 6. d3 {[%clk 0:03:00.9]} 6... Nbd7 {[%clk 0:02:59.1]} 7. Qb3
{[%clk 0:03:00.8]} 7... Qb6 {[%clk 0:02:57.5]} 8. cxd5 {[%clk 0:03:00.2]} 8...
Qxb3 {[%clk 0:02:44.5]} 9. axb3 {[%clk 0:03:01.1]} 9... exd5 {[%clk 0:02:45]}
10. Bd2 {[%clk 0:02:59.9]} 10... Be7 {[%clk 0:02:41.8]} 11. b4 {[%clk
0:02:58.5]} 11... O-O {[%clk 0:02:36.5]} 12. Nd4 {[%clk 0:02:57.1]} 12... Bg4
{[%clk 0:02:32.8]} 13. h3 {[%clk 0:02:52.3]} 13... Bh5 {[%clk 0:02:33]} 14. Re1
{[%clk 0:02:44.4]} 14... a6 {[%clk 0:02:31.4]} 15. Na3 {[%clk 0:02:43.8]} 15...
Rfe8 {[%clk 0:02:23.8]} 16. Nac2 {[%clk 0:02:43.6]} 16... Bd6 {[%clk 0:02:08.2]}
17. f4 {[%clk 0:02:26.4]} 17... h6 {[%clk 0:02:00.9]} 18. Kf2 {[%clk 0:02:26.6]}
18... Bg6 {[%clk 0:01:59.4]} 19. Nb3 {[%clk 0:02:22.1]} 19... Bc7 {[%clk
0:01:56.2]} 20. Bc3 {[%clk 0:02:20.5]} 20... h5 {[%clk 0:01:48.8]} 21. Bd2
{[%clk 0:02:04]} 21... Bb6+ {[%clk 0:01:41.5]} 22. Be3 {[%clk 0:02:04.2]} 22...
Bc7 {[%clk 0:01:21.8]} 23. Na5 {[%clk 0:02:03.4]} 23... Re7 {[%clk 0:01:06.3]}
24. Nxb7 {[%clk 0:01:52.7]} 24... Rae8 {[%clk 0:01:05.8]} 25. Bd2 {[%clk
0:01:53.1]} 25... Bb6+ {[%clk 0:00:59.6]} 26. Kf1 {[%clk 0:01:36.8]} 26... Rxe2
{[%clk 0:00:54.4]} 27. Rxe2 {[%clk 0:01:35]} 27... Bxd3 {[%clk 0:00:55]} 28. Bf3
{[%clk 0:01:34.7]} 28... Rxe2 {[%clk 0:00:55.6]} 29. Bxe2 {[%clk 0:01:34.9]}
29... Bxc2 {[%clk 0:00:56]} 30. Rxa6 {[%clk 0:01:32.4]} 30... Ne4 {[%clk
0:00:49.9]} 31. Be1 {[%clk 0:01:32.5]} 31... d4 {[%clk 0:00:46.8]} 32. Ra3
{[%clk 0:01:02.7]} 32... Ndf6 {[%clk 0:00:41]} 33. Bd3 {[%clk 0:00:59.6]} 33...
Bxd3+ {[%clk 0:00:40.2]} 34. Rxd3 {[%clk 0:01:00.5]} 34... Nd5 {[%clk
0:00:40.8]} 35. Na5 {[%clk 0:00:56.5]} 35... Ne3+ {[%clk 0:00:39.9]} 36. Ke2
{[%clk 0:00:56.3]} 36... Nc2 {[%clk 0:00:31.7]} 37. Nxc6 {[%clk 0:00:53.4]}
37... f5 {[%clk 0:00:29.9]} 38. b5 {[%clk 0:00:51.4]} 38... Nc5 {[%clk
0:00:26.2]} 39. Ba5 {[%clk 0:00:49]} 39... Nxd3 {[%clk 0:00:18.1]} 40. Kxd3
{[%clk 0:00:49.9]} 40... Bxa5 {[%clk 0:00:17.5]} 41. Nxa5 {[%clk 0:00:50.8]}
41... Nb4+ {[%clk 0:00:17.5]} 42. Kxd4 {[%clk 0:00:51.4]} 42... Kf7 {[%clk
0:00:17.2]} 43. b6 {[%clk 0:00:51.7]} 43... Na6 {[%clk 0:00:16.7]} 44. b7 {[%clk
0:00:51.9]} 44... Ke6 {[%clk 0:00:17.1]} 45. Nc6 {[%clk 0:00:52.3]} 1-0

[Event "Early-Titled-Tuesday-Blitz-May-28-2024"]
[Site "Chess.com"]
[Date "2024.05.28"]
[Round "9"]
[White "EvgenyBurmakin"]
[Black "Kielinkei"]
[Result "0-1"]
[WhiteElo "2341"]
[BlackElo "2463"]
[TimeControl "180+1"]
[EndTime "9:46:40 PDT"]
[Termination "Kielinkei won by checkmate"]

1. e4 {[%clk 0:03:00.9]} 1... c5 {[%clk 0:03:00.2]} 2. Nc3 {[%clk 0:03:00.1]}
2... a6 {[%clk 0:03:00]} 3. Nf3 {[%clk 0:02:58.9]} 3... Nc6 {[%clk 0:02:55.4]}
4. d4 {[%clk 0:02:58.4]} 4... cxd4 {[%clk 0:02:56.3]} 5. Nxd4 {[%clk 0:02:58.7]}
5... e6 {[%clk 0:02:56.8]} 6. Be3 {[%clk 0:02:55]} 6... Qc7 {[%clk 0:02:56.8]}
7. Be2 {[%clk 0:02:47.3]} 7... Nf6 {[%clk 0:02:54.5]} 8. O-O {[%clk 0:02:46.4]}
8... Be7 {[%clk 0:02:55.2]} 9. f4 {[%clk 0:02:44]} 9... d6 {[%clk 0:02:55.8]}
10. Qe1 {[%clk 0:02:25.7]} 10... O-O {[%clk 0:02:55.5]} 11. Qf2 {[%clk
0:02:23.2]} 11... Bd7 {[%clk 0:02:48.8]} 12. g4 {[%clk 0:02:11.9]} 12... Nxd4
{[%clk 0:02:43.1]} 13. Bxd4 {[%clk 0:02:10.7]} 13... e5 {[%clk 0:02:43.5]} 14.
Bb6 {[%clk 0:02:00]} 14... Qc6 {[%clk 0:02:42.9]} 15. fxe5 {[%clk 0:00:49]}
15... dxe5 {[%clk 0:02:38.2]} 16. Nd5 {[%clk 0:00:49]} 16... Nxd5 {[%clk
0:02:27]} 17. exd5 {[%clk 0:00:49.9]} 17... Qxd5 {[%clk 0:02:27.4]} 18. Rad1
{[%clk 0:00:48.5]} 18... Qe6 {[%clk 0:02:22.4]} 19. h3 {[%clk 0:00:46.1]} 19...
Bc6 {[%clk 0:02:18.5]} 20. b3 {[%clk 0:00:40]} 20... Kh8 {[%clk 0:01:39.9]} 21.
Bc4 {[%clk 0:00:37.6]} 21... Qh6 {[%clk 0:01:39.4]} 22. Qg3 {[%clk 0:00:17.3]}
22... f6 {[%clk 0:00:58.9]} 23. Bd5 {[%clk 0:00:14.1]} 23... Rac8 {[%clk
0:00:52.8]} 24. Be3 {[%clk 0:00:13]} 24... Qg6 {[%clk 0:00:51.2]} 25. c4 {[%clk
0:00:12.9]} 25... Rfd8 {[%clk 0:00:48.7]} 26. Rd2 {[%clk 0:00:12.4]} 26... Bxd5
{[%clk 0:00:48.2]} 27. cxd5 {[%clk 0:00:12.9]} 27... Qe4 {[%clk 0:00:44.4]} 28.
Rfd1 {[%clk 0:00:13]} 28... Rc3 {[%clk 0:00:43]} 29. Kf2 {[%clk 0:00:10]} 29...
f5 {[%clk 0:00:33.2]} 30. d6 {[%clk 0:00:09]} 30... f4 {[%clk 0:00:28.7]} 31.
dxe7 {[%clk 0:00:07.9]} 31... fxg3+ {[%clk 0:00:28.5]} 32. Kxg3 {[%clk
0:00:03.2]} 32... Qxe3+ {[%clk 0:00:26]} 33. Kh4 {[%clk 0:00:03.4]} 33... Qh6#
{[%clk 0:00:25.5]} 0-1

[Event "Early-Titled-Tuesday-Blitz-May-28-2024"]
[Site "Chess.com"]
[Date "2024.05.28"]
[Round "9"]
[White "Andrii_Prydun"]
[Black "talaicito"]
[Result "0-1"]
[WhiteElo "2362"]
[BlackElo "2260"]
[TimeControl "180+1"]
[EndTime "9:46:42 PDT"]
[Termination "talaicito won by resignation"]

1. Nf3 {[%clk 0:03:00.9]} 1... f5 {[%clk 0:02:56.5]} 2. g3 {[%clk 0:03:01.8]}
2... Nf6 {[%clk 0:02:54.4]} 3. Bg2 {[%clk 0:03:02.7]} 3... d6 {[%clk 0:02:54.2]}
4. O-O {[%clk 0:03:01.7]} 4... e5 {[%clk 0:02:54.3]} 5. d3 {[%clk 0:02:58.9]}
5... Be7 {[%clk 0:02:54.4]} 6. Nc3 {[%clk 0:02:57.4]} 6... O-O {[%clk
0:02:54.5]} 7. b3 {[%clk 0:02:43.6]} 7... Nc6 {[%clk 0:02:48.2]} 8. Bb2 {[%clk
0:02:42.8]} 8... Qe8 {[%clk 0:02:47]} 9. Nd2 {[%clk 0:02:41.4]} 9... Qh5 {[%clk
0:02:37]} 10. e4 {[%clk 0:02:38.9]} 10... Qh6 {[%clk 0:02:27.9]} 11. Nd5 {[%clk
0:02:32]} 11... Bd8 {[%clk 0:02:21.2]} 12. Nc4 {[%clk 0:02:24.2]} 12... f4
{[%clk 0:01:52.3]} 13. Nxf6+ {[%clk 0:02:04]} 13... Bxf6 {[%clk 0:01:46.6]} 14.
f3 {[%clk 0:02:04]} 14... fxg3 {[%clk 0:01:25.2]} 15. hxg3 {[%clk 0:02:04.9]}
15... b5 {[%clk 0:01:24.7]} 16. Nd2 {[%clk 0:02:00.4]} 16... Bg5 {[%clk
0:01:24.9]} 17. Rf2 {[%clk 0:01:55.3]} 17... Be3 {[%clk 0:01:20.9]} 18. Qe2
{[%clk 0:01:54.1]} 18... a5 {[%clk 0:01:02.8]} 19. a4 {[%clk 0:01:49.2]} 19...
bxa4 {[%clk 0:00:54.7]} 20. Rxa4 {[%clk 0:01:48.3]} 20... Bd7 {[%clk 0:00:46.2]}
21. Nc4 {[%clk 0:01:39.3]} 21... Bxf2+ {[%clk 0:00:37.3]} 22. Qxf2 {[%clk
0:01:40.2]} 22... Qg5 {[%clk 0:00:21.2]} 23. Ra1 {[%clk 0:01:38.7]} 23... h5
{[%clk 0:00:19.3]} 24. Bc1 {[%clk 0:01:38.2]} 24... Qg6 {[%clk 0:00:18.4]} 25.
Bd2 {[%clk 0:01:33.6]} 25... Nd4 {[%clk 0:00:17.5]} 26. f4 {[%clk 0:01:23.4]}
26... Bg4 {[%clk 0:00:13.7]} 27. Bxa5 {[%clk 0:01:18.4]} 27... Ne2+ {[%clk
0:00:12.9]} 28. Kh2 {[%clk 0:01:13.8]} 28... exf4 {[%clk 0:00:12.8]} 29. gxf4
{[%clk 0:01:13.6]} 29... Rxf4 {[%clk 0:00:12.8]} 30. Qe3 {[%clk 0:01:11.6]}
30... Bf3 {[%clk 0:00:11.5]} 31. Qxe2 {[%clk 0:00:20.8]} 31... Bxe2 {[%clk
0:00:10.3]} 0-1

[Event "Early-Titled-Tuesday-Blitz-May-28-2024"]
[Site "Chess.com"]
[Date "2024.05.28"]
[Round "9"]
[White "Abund"]
[Black "GOGIEFF"]
[Result "0-1"]
[WhiteElo "2814"]
[BlackElo "3020"]
[TimeControl "180+1"]
[EndTime "9:46:49 PDT"]
[Termination "GOGIEFF won by resignation"]

1. e4 {[%clk 0:03:00]} 1... c5 {[%clk 0:02:59.6]} 2. Nf3 {[%clk 0:02:59.8]} 2...
Nc6 {[%clk 0:02:59.9]} 3. Bb5 {[%clk 0:02:59.8]} 3... e6 {[%clk 0:03:00]} 4. O-O
{[%clk 0:03:00.2]} 4... Nge7 {[%clk 0:02:59.9]} 5. Re1 {[%clk 0:03:00.6]} 5...
a6 {[%clk 0:02:59.7]} 6. Bf1 {[%clk 0:03:01.1]} 6... Ng6 {[%clk 0:02:59.4]} 7.
c3 {[%clk 0:02:59.9]} 7... Be7 {[%clk 0:02:46]} 8. d4 {[%clk 0:02:58.3]} 8... d6
{[%clk 0:02:46]} 9. Be3 {[%clk 0:02:45.2]} 9... O-O {[%clk 0:02:44.7]} 10. a4
{[%clk 0:02:38.6]} 10... b6 {[%clk 0:02:30.3]} 11. Nbd2 {[%clk 0:02:36.6]} 11...
cxd4 {[%clk 0:02:27.1]} 12. cxd4 {[%clk 0:02:34.6]} 12... Bb7 {[%clk 0:02:27.3]}
13. Rc1 {[%clk 0:02:26.9]} 13... Nb4 {[%clk 0:02:22.4]} 14. Qb3 {[%clk
0:02:20.1]} 14... a5 {[%clk 0:02:22.5]} 15. Rc3 {[%clk 0:01:58.1]} 15... d5
{[%clk 0:02:08.6]} 16. e5 {[%clk 0:01:54.3]} 16... f6 {[%clk 0:02:09]} 17. exf6
{[%clk 0:01:35.1]} 17... Bxf6 {[%clk 0:02:09.9]} 18. g3 {[%clk 0:01:28.6]} 18...
e5 {[%clk 0:02:03.6]} 19. Rec1 {[%clk 0:01:18.4]} 19... Kh8 {[%clk 0:01:59.2]}
20. Rc7 {[%clk 0:01:13.9]} 20... Ba6 {[%clk 0:01:54.6]} 21. dxe5 {[%clk
0:01:06.7]} 21... Nxe5 {[%clk 0:01:52.2]} 22. Bxb6 {[%clk 0:00:42.4]} 22... Ned3
{[%clk 0:01:43.8]} 23. Bxd3 {[%clk 0:00:19.2]} 23... Nxd3 {[%clk 0:01:42.1]} 24.
R1c6 {[%clk 0:00:19.2]} 24... Qe8 {[%clk 0:01:38]} 25. Be3 {[%clk 0:00:15.1]}
25... Nb4 {[%clk 0:01:35.3]} 26. Rc1 {[%clk 0:00:13.8]} 26... Rb8 {[%clk
0:01:32.1]} 27. Bc5 {[%clk 0:00:13]} 27... Nd3 {[%clk 0:01:31.4]} 28. Qa3 {[%clk
0:00:12.4]} 28... Nxc1 {[%clk 0:01:31.1]} 29. Bxf8 {[%clk 0:00:12.7]} 29... Ne2+
{[%clk 0:01:30.6]} 30. Kg2 {[%clk 0:00:12.5]} 30... Qxf8 {[%clk 0:01:31]} 31.
Qe3 {[%clk 0:00:11.8]} 31... d4 {[%clk 0:01:25.6]} 32. Qe6 {[%clk 0:00:11.5]}
32... Bd3 {[%clk 0:01:10.3]} 33. Ne1 {[%clk 0:00:07]} 33... Re8 {[%clk
0:01:09.6]} 34. Qg4 {[%clk 0:00:06.3]} 34... Bg6 {[%clk 0:01:06.7]} 35. Nef3
{[%clk 0:00:04.2]} 35... d3 {[%clk 0:01:06.8]} 36. b3 {[%clk 0:00:02.7]} 36...
Nc3 {[%clk 0:01:03]} 37. h4 {[%clk 0:00:02.9]} 37... Ne4 {[%clk 0:01:02.3]} 38.
Ra7 {[%clk 0:00:01.7]} 38... Nxd2 {[%clk 0:01:01.7]} 39. Nxd2 {[%clk 0:00:02.6]}
39... Bc3 {[%clk 0:00:58.5]} 40. Nc4 {[%clk 0:00:02]} 40... d2 {[%clk
0:00:57.6]} 41. h5 {[%clk 0:00:02.5]} 41... Be4+ {[%clk 0:00:57.8]} 42. Kh2
{[%clk 0:00:02.9]} 42... Qxf2+ {[%clk 0:00:56.5]} 43. Kh3 {[%clk 0:00:03.5]}
43... Qg2+ {[%clk 0:00:55.4]} 44. Kh4 {[%clk 0:00:03.6]} 44... Qh2+ {[%clk
0:00:55.5]} 45. Kg5 {[%clk 0:00:02.5]} 45... Bf6+ {[%clk 0:00:56.1]} 46. Kf4
{[%clk 0:00:02.6]} 46... Qf2+ {[%clk 0:00:56.3]} 0-1

[Event "Early-Titled-Tuesday-Blitz-May-28-2024"]
[Site "Chess.com"]
[Date "2024.05.28"]
[Round "9"]
[White "manitodeplomo"]
[Black "Veleamater"]
[Result "0-1"]
[WhiteElo "2550"]
[BlackElo "2450"]
[TimeControl "180+1"]
[EndTime "9:46:52 PDT"]
[Termination "Veleamater won on time"]

1. d4 {[%clk 0:03:00.9]} 1... d6 {[%clk 0:02:57.1]} 2. Nf3 {[%clk 0:02:59.2]}
2... Nf6 {[%clk 0:02:56.1]} 3. c4 {[%clk 0:02:59.5]} 3... g6 {[%clk 0:02:56.6]}
4. Nc3 {[%clk 0:02:59.8]} 4... Bg7 {[%clk 0:02:57.1]} 5. e4 {[%clk 0:03:00.1]}
5... O-O {[%clk 0:02:57.6]} 6. Be2 {[%clk 0:03:00.3]} 6... Nc6 {[%clk
0:02:58.2]} 7. d5 {[%clk 0:02:59.9]} 7... Ne5 {[%clk 0:02:58]} 8. Nxe5 {[%clk
0:02:59.4]} 8... dxe5 {[%clk 0:02:58.9]} 9. Be3 {[%clk 0:02:59.1]} 9... Ne8
{[%clk 0:02:59.2]} 10. O-O {[%clk 0:02:58.6]} 10... h6 {[%clk 0:02:58.5]} 11.
Qd2 {[%clk 0:02:57.2]} 11... Kh7 {[%clk 0:02:57.5]} 12. c5 {[%clk 0:02:54.6]}
12... f5 {[%clk 0:02:57.1]} 13. f3 {[%clk 0:02:54.4]} 13... f4 {[%clk
0:02:56.5]} 14. Bf2 {[%clk 0:02:54.4]} 14... g5 {[%clk 0:02:57]} 15. g4 {[%clk
0:02:53.6]} 15... fxg3 {[%clk 0:02:52.5]} 16. hxg3 {[%clk 0:02:52.4]} 16... Bh3
{[%clk 0:02:51.8]} 17. Rfd1 {[%clk 0:02:48.1]} 17... g4 {[%clk 0:02:45.9]} 18.
f4 {[%clk 0:02:17.2]} 18... exf4 {[%clk 0:02:44.5]} 19. gxf4 {[%clk 0:02:18.1]}
19... e5 {[%clk 0:01:58.7]} 20. dxe6 {[%clk 0:02:06.8]} 20... Qxd2 {[%clk
0:01:58]} 21. Rxd2 {[%clk 0:02:04.8]} 21... Rxf4 {[%clk 0:01:57.8]} 22. Rd7
{[%clk 0:01:39.9]} 22... Rf8 {[%clk 0:01:53.4]} 23. Rad1 {[%clk 0:01:33]} 23...
Rg8 {[%clk 0:01:36.6]} 24. Nd5 {[%clk 0:01:08.2]} 24... g3 {[%clk 0:01:15.5]}
25. Bd4 {[%clk 0:00:44.5]} 25... Bxe6 {[%clk 0:01:14.3]} 26. Re7 {[%clk
0:00:44.8]} 26... Bxd5 {[%clk 0:01:14.2]} 27. exd5 {[%clk 0:00:45.1]} 27... Kg6
{[%clk 0:01:13.5]} 28. Bd3+ {[%clk 0:00:36.1]} 28... Kh5 {[%clk 0:01:13.8]} 29.
Bxg7 {[%clk 0:00:23.1]} 29... Rxg7 {[%clk 0:01:06.1]} 30. Rde1 {[%clk
0:00:21.2]} 30... Rxe7 {[%clk 0:01:02]} 31. Rxe7 {[%clk 0:00:22.1]} 31... Rd8
{[%clk 0:01:01.3]} 32. Re6 {[%clk 0:00:19.4]} 32... Kg5 {[%clk 0:01:00.2]} 33.
Re5+ {[%clk 0:00:06.3]} 33... Kf4 {[%clk 0:00:58.2]} 34. Re4+ {[%clk 0:00:06.3]}
34... Kf3 {[%clk 0:00:56.8]} 35. Re7 {[%clk 0:00:06.1]} 35... Kf4 {[%clk
0:00:41.5]} 36. Be4 {[%clk 0:00:04.5]} 36... Nf6 {[%clk 0:00:36.8]} 37. Bg2
{[%clk 0:00:04]} 37... Nxd5 {[%clk 0:00:34.7]} 38. Rh7 {[%clk 0:00:02.5]} 38...
Ne3 {[%clk 0:00:31.6]} 39. Rf7+ {[%clk 0:00:01.2]} 39... Kg5 {[%clk 0:00:29.7]}
0-1